Cogmind - Beta 16 --- EXPLORER MODE // 2025.11.18 @ 11:03:53 Player: K.K.Y. Result: Destroyed by S-43 Plague with Heavy Machine Gun Performance ------------- Evolutions (7) 3500 Regions Visited (13) 2600 Robots Destroyed (184) 920 Value Destroyed (8195) 8195 Prototype IDs (40) 800 Alien Tech Used (0) 0 Bonus (633) 633 TOTAL SCORE: 16648 Bonus ------- Follower Combat Kills 333 Aligned with FarCom 300 Cogmind --------- Core Integrity 0/1300 Matter 295/300 Energy 82/100 System Corruption 12% Temperature Cool (0) Movement Core (1550) Ox30 Location -3/Research Parts ------- > --- POWER (3) -------- (None) > --- PROPULSION (6) --- (None) > --- UTILITY (10) ----- Huge Storage Unit Experimental Signal Interpreter Graphene Brace (fused) System Shield > --- WEAPON (3) ------- Matter Neutralizer > --- INVENTORY (25) --- Advanced Medium Treads Experimental Power Amplifier Improved Sensor Array Advanced Terrain Scanner Improved Terrain Scan Processor High-powered Shock Rifle Improved Arc Projector Long-range Proton Cannon Disruptor Cannon Nova Cannon KE Penetrator Railgun Railgun Advanced Assault Cannon Hardcell Cannon Heavy Shock Bomb Launcher Improved Remote Datajack Plasma Cutter Greatsword Greatsword Peak State ------------ > --- POWER ------------ Neutrino Core Neutrino Core Neutrino Core > --- PROPULSION ------- Armored Medium Treads Advanced Medium Treads Advanced Medium Treads Advanced Medium Treads > --- UTILITY ---------- Experimental Power Amplifier Advanced Heat Sink Huge Storage Unit Gravity Neutralizer Experimental Signal Interpreter Precision Energy Filter Advanced Transmission Jammer Graphene Brace Advanced Point Defense System System Shield > --- WEAPON ----------- Heavy Neutron Cannon KE Penetrator Light Antimatter Cannon > --- INVENTORY -------- Improved Sensor Array Advanced Terrain Scanner Improved Terrain Scan Processor Long-range Tractor Beam High-powered Shock Rifle Improved Arc Projector Long-range Proton Cannon Disruptor Cannon Matter Neutralizer Nova Cannon KE Penetrator Railgun Railgun Advanced Assault Cannon Hardcell Cannon Light Antimatter Cannon Heavy Shock Bomb Launcher Improved Remote Datajack Plasma Cutter Greatsword Greatsword [Rating: 140] Favorites ----------- Power Neutrino Core Engine Heavy Deuterium Engine Power Core Neutrino Core Reactor Light Antimatter Reactor Propulsion Armored Medium Treads Treads Armored Medium Treads Leg Aluminum Leg Utility Layered Light Armor Plating Device Advanced Heat Sink Storage Huge Storage Unit Processor Machine Analyzer Hackware System Shield Protection Layered Light Armor Plating Weapon Gauss Cannon Energy Gun EM Pulse Gun Energy Cannon Latent Energy Streamer Ballistic Gun KE Penetrator Ballistic Cannon Gauss Cannon Launcher Rocket Array Special Weapon Plasma Cutter Slashing Weapon Chainsword Build | -11 -10 -10 -10 -9 -8 -7 -7 -7 -6 -6 -5 -4 -3 ------- Run | Yrd Mat Min Exi Min Mat Fac Low Low Fac Ext Fac Fac Res Slots Evolved 15 | . 1 . . . 4 2 . . 2 . 2 2 2 Power 2 | . . . . . 1 . . . . . . . 1 Propulsion 4 | . 1 . . . . 1 . . . . 1 1 . Utility 8 | . . . . . 3 1 . . 2 . 1 . 1 Weapon 1 | . . . . . . . . . . . . 1 . Parts Attached 137 | 7 1 . 1 2 12 7 19 3 10 12 27 23 13 Power 21 | 1 . . . . 4 1 3 1 2 2 2 4 1 Engine 12 | 1 . . . . 4 1 1 . 2 1 1 1 . Core 8 | . . . . . . . 2 1 . 1 1 2 1 Reactor 1 | . . . . . . . . . . . . 1 . Propulsion 33 | 2 1 . . 2 4 1 2 1 3 4 9 4 . Treads 27 | . . . . . 4 1 1 1 3 4 9 4 . Leg 6 | 2 1 . . 2 . . 1 . . . . . . Wheel . | . . . . . . . . . . . . . . Hover . | . . . . . . . . . . . . . . Flight . | . . . . . . . . . . . . . . Utility 50 | 2 . . . . 3 3 8 1 4 3 10 10 6 Device 26 | . . . . . 1 1 2 . 3 . 8 5 6 Storage 5 | 1 . . . . 1 2 . 1 . . . . . Processor 5 | 1 . . . . 1 . 1 . . . . 2 . Hackware 2 | . . . . . . . . . . . 1 1 . Protection 12 | . . . . . . . 5 . 1 3 1 2 . Artifact . | . . . . . . . . . . . . . . Weapon 33 | 2 . . 1 . 1 2 6 . 1 3 6 5 6 Energy Gun 6 | 2 . . . . 1 1 . . . . . 1 1 Energy Cannon 6 | . . . 1 . . . . . . 1 . . 4 Ballistic Gun 5 | . . . . . . . 1 . . . 2 2 . Ballistic Cannon 9 | . . . . . . 1 2 . . 1 2 2 1 Launcher 2 | . . . . . . . . . . . 2 . . Special Weapon 1 | . . . . . . . . . . 1 . . . Impact Weapon . | . . . . . . . . . . . . . . Slashing Weapon 4 | . . . . . . . 3 . 1 . . . . Piercing Weapon . | . . . . . . . . . . . . . . Special Melee Weapon . | . . . . . . . . . . . . . . Unidentified Prototypes 13 | . . . . . . 2 . . 1 . 3 3 4 Parts Lost 57 | . . 1 . . . 1 14 . 1 4 3 14 19 Power 11 | . . . . . . . 3 . . 2 . 2 4 Propulsion 12 | . . . . . . . 4 . . . . 5 3 Utility 23 | . . . . . . . 4 . 1 2 3 6 7 Weapon 11 | . . 1 . . . 1 3 . . . . 1 5 Highest Loss Streak 7 | . . 1 . . . 1 5 . 1 2 2 3 7 To Critical Strikes . | . . . . . . . . . . . . . . Average Backups 20 | 1 3 7 8 9 11 22 23 24 25 24 23 22 22 Power 1 | . . . . . . 1 . 1 2 2 2 2 . Propulsion 1 | . . . . . . . . 1 1 4 3 1 . Utility 8 | . 3 7 7 8 8 13 13 10 10 7 5 3 4 Weapon 8 | . . . 1 1 2 6 8 9 10 8 9 12 15 Tool/Special . | . . . . . . . . . . . . . . Unused Backups 40 | 2 . . . 1 3 2 . 1 2 6 8 1 14 Power 2 | . . . . . . 1 . . 1 . . . . Propulsion 2 | 2 . . . . . . . . . . . . . Utility 11 | . . . . 1 3 . . . . 2 2 . 3 Weapon 22 | . . . . . . 1 . 1 . 4 5 1 10 Tool/Special 3 | . . . . . . . . . 1 . 1 . 1 Average Slot Usage (%) 82 | . 99 91 95 100 94 95 55 77 91 96 95 87 73 Engine 7 | . 12 12 12 12 15 14 6 7 6 5 4 4 . Core 3 | . . . . . . . 3 2 6 5 5 1 8 Treads 14 | . . . . . 13 26 3 10 22 25 26 24 11 Leg 5 | . 36 37 37 37 7 . 2 . . . . . . Device 11 | . . . . . 7 12 3 14 15 10 12 22 25 Storage 7 | . 12 12 12 12 15 13 7 7 6 6 5 5 4 Processor 8 | . 12 12 12 12 15 14 9 7 6 6 5 7 5 Protection 8 | . . . . . . . 7 14 15 23 21 1 . Energy Gun 2 | . 25 16 12 12 8 1 . . . . . 2 2 Energy Cannon 2 | . . . 8 12 8 7 1 . . . . . 2 Ballistic Gun 1 | . . . . . . . 1 . . . 3 7 1 Ballistic Cannon 3 | . . . . . . 5 3 . . 7 5 4 2 Slashing Weapon 3 | . . . . . . . 4 14 11 4 . . . Peak Build Rating 140 | 7 8 8 18 19 40 52 54 51 69 72 97 130 140 Average Rating 58 | 3 7 7 14 18 34 48 33 44 62 67 86 105 112 On Entrance 42 | . 7 8 8 18 19 40 51 42 51 68 69 97 120 Avg Prop Armor Cover (%) 4 | . . . . . . . . . . . . 4 . Naked Turns . | . . . . . . . . . . . . . . Heaviest Build 163 | 17 17 17 25 25 79 159 124 113 127 136 140 144 163 Greatest Support 183 | 20 30 30 30 30 60 88 88 54 112 114 150 183 129 Greatest Overweight (x) 38 | . . . . . 2 1 38 3 2 1 1 1 32 Average Overweight (x) 1 | . . . . . 1 . 7 2 1 1 . . 2 Largest Inventory Capacity 25 | 10 10 10 10 10 20 25 25 25 25 25 25 25 25 Average Capacity 22 | 7 10 10 10 10 19 23 25 25 25 25 25 25 25 Most Carried 25 | 5 7 8 9 10 20 25 25 25 25 25 25 25 25 Average Carried 21 | 1 3 7 8 9 11 22 23 24 25 24 24 24 24 Final Capacity 25 | 10 10 10 10 10 20 25 25 25 25 25 25 25 25 Final Carried 25 | . 7 8 9 10 20 25 20 25 25 25 23 25 22 Class Distribution -------------------- 58% | Hacker-Mutant 23% | Hacker-Skirmisher 9% | Scavenger-Mutant 4% | Scientist-Mutant Dominant Class ---------------- Hacker-Mutant | -10/Materials Hacker-Mutant | -10/Mines Hacker-Mutant | -10/Exiles Hacker-Mutant | -9/Mines Hacker-Skirmisher | -8/Materials Hacker-Skirmisher | -7/Factory Hacker-Mutant | -7/Lower Caves Hacker-Mutant | -7/Lower Caves Hacker-Mutant | -6/Factory Hacker-Mutant | -6/Extension Scavenger-Mutant | -5/Factory Hacker-Skirmisher | -4/Factory Hacker-Mutant | -3/Research Resources | -11 -10 -10 -10 -9 -8 -7 -7 -7 -6 -6 -5 -4 -3 ----------- Run | Yrd Mat Min Exi Min Mat Fac Low Low Fac Ext Fac Fac Res Matter Collected 6041 | 170 110 . . 30 131 417 388 292 117 752 1037 1566 1031 Remotely 1012 | . . . . . . . . . . . 371 170 471 Salvage Created 8769 | . 55 147 . . 604 553 210 358 219 1181 917 3500 1025 Parts 395 | . 3 10 . . 36 32 10 15 10 39 49 128 63 Haulers Intercepted 6 | . 1 . . . 1 1 . . . . . 3 . Recyclers Shooed 13 | . . . . . 3 . . . . 2 1 5 2 Parts Field Recycled . | . . . . . . . . . . . . . . Retrieved Matter . | . . . . . . . . . . . . . . Parts Self-Destructed . | . . . . . . . . . . . . . . Prevented . | . . . . . . . . . . . . . . Parts Restored . | . . . . . . . . . . . . . . Kills | -11 -10 -10 -10 -9 -8 -7 -7 -7 -6 -6 -5 -4 -3 ------- Run | Yrd Mat Min Exi Min Mat Fac Low Low Fac Ext Fac Fac Res Combat Hostiles Destroyed 136 | . . 4 . . 6 17 3 2 4 21 20 37 22 Melee 11 | . . . . . . . 3 2 4 2 . . . Guns 44 | . . 2 . . 5 . . . . . 10 23 4 Cannons 73 | . . . . . . 17 . . . 19 7 14 16 AOE 8 | . . 2 . . 1 . . . . . 3 . 2 Classes Destroyed 18 | . 1 2 . . 3 2 2 2 1 2 1 2 . Worker 11 | . . . . . 2 1 . . . . . 5 3 Builder 13 | . . . . . 1 . . . . 1 2 3 6 Hauler 6 | . 1 . . . 1 1 . . . . . 3 . Recycler 16 | . . . . . . . . . . 2 1 12 1 Operator 1 | . . . . . . . . . . . 1 . . Watcher 9 | . . . . . 5 1 . . . 1 1 1 . Swarmer 12 | . . 2 . . 1 . . 2 . . . 4 3 Grunt 51 | . . . . . . 12 1 . 1 11 10 9 7 Brawler 3 | . . . . . . . 1 . . 1 . . 1 Duelist 1 | . . . . . . . . . 1 . . . . Sentry 18 | . . 2 . . 5 1 . . 1 4 2 3 . Demolisher 1 | . . . . . . . . . . . . 1 . Hunter 14 | . . . . . . . 1 . . 4 2 4 3 Programmer 26 | . . . . . . 4 . . 1 . 6 7 8 Behemoth 2 | . . . . . . . . . . 1 . 1 . Samaritan 6 | . . . . . . . . 6 . . . . . Tinkerer 1 | . . . . . . . . 1 . . . . . Assembled 8 | . . . . . . . . . . . . 8 . Best Kill Streak 12 | . 1 4 . . 3 4 2 2 2 5 3 12 6 Combat Bots Only 9 | . . 4 . . 2 3 2 2 2 5 2 9 4 Max Kills in Single Turn 3 | . 1 1 . . 2 1 1 1 1 1 2 2 3 Gunslinging . | . . . . . . . . . . . . . . Exploded 2 | . . 1 . . 1 . . . . . 2 . 1 Melee 1 | . . . . . . . 1 1 1 1 . . . Uniques/NPCs Destroyed . | . . . . . . . . . . . . . . Combat | -11 -10 -10 -10 -9 -8 -7 -7 -7 -6 -6 -5 -4 -3 -------- Run | Yrd Mat Min Exi Min Mat Fac Low Low Fac Ext Fac Fac Res Hostile Shots Fired 1578 | . . 27 . . 58 97 251 15 155 168 123 358 326 Missed 500 | . . 9 . . 19 36 69 5 53 56 39 116 98 Hits 1078 | . . 18 . . 39 61 182 10 102 112 84 242 228 Melee 12 | . . . . . . . 1 . 2 1 . 5 3 Projectile 1066 | . . 18 . . 39 61 181 10 100 111 84 237 225 AOE 7 | . . . . . . . . . . . . 7 . Critical Strikes 47 | . . 1 . . 1 . 5 . 1 4 5 17 13 Actively Blocked 21 | . . . . . . . . . . . . 8 13 Part Disruptions 3 | . . . . . . . . . . . 1 2 . Damage Taken 12780 | . . 170 . . 395 511 1562 86 614 1209 1136 3761 3336 Core 2125 | . . 44 . . 56 35 260 . 62 30 81 252 1305 Absorbed by Shields 56 | . . . . . . . . . . 21 . . 35 Ignored by Resistances 7074 | . . 106 . . 239 316 919 55 408 725 675 2037 1594 Core Remaining (%) 83 | 100 . . . 82 89 . . 57 . 89 91 78 . Volleys Fired 466 | . 1 13 . . 34 72 16 . . 68 56 121 85 Largest 3 | . 2 2 . . 1 1 2 . . 2 2 3 3 Hottest 279 | . 80 80 . . 60 45 80 . . 80 85 184 279 Shots Fired 909 | . 2 19 . . 34 72 23 . . 113 110 345 191 Gun 425 | . 2 19 . . 33 2 4 . . . 50 251 64 Cannon 478 | . . . . . 1 70 19 . . 113 54 94 127 Launcher 6 | . . . . . . . . . . . 6 . . Special . | . . . . . . . . . . . . . . Kinetic 708 | . . . . . . 70 13 . . 113 104 298 110 Thermal 113 | . . . . . . . . . . . . 47 66 Explosive 6 | . . . . . . . . . . . 6 . . Electromagnetic 82 | . 2 19 . . 34 2 10 . . . . . 15 Robot Hit Streak 56 | . 2 21 . . 36 30 33 . . 35 39 56 20 Robot Miss Streak 2 | . . . . . 1 1 1 . . 1 2 2 2 Penetration Max 1 | . . . . . . . . . . 1 1 1 1 Secondary Targets 2 | . . 1 . . . . . . . . . 1 . Max Gunslinging Chain 1 | . . 1 . . . . . . . . . 1 . Shots Hit Robots 773 | . 2 19 . . 34 70 24 13 24 104 92 265 126 Core Hits 392 | . 2 6 . . 25 27 14 9 6 46 52 143 62 Critical Kills 3 | . . . . . . . . . . . 1 2 . Critical Parts Destroyed 4 | . . . . . . . . . . . 1 2 1 Critical Strikes 54 | . . . . . . 8 2 . 3 21 5 8 7 Destroy 7 | . . . . . . . . . . . 2 4 1 Blast 41 | . . . . . . 8 2 . . 18 3 4 6 Sever 6 | . . . . . . . . . 3 3 . . . Melee Attacks 77 | . . . . . . . 12 15 34 16 . . . Impact . | . . . . . . . . . . . . . . Slashing 77 | . . . . . . . 12 15 34 16 . . . Piercing . | . . . . . . . . . . . . . . Sneak Attacks 14 | . . . . . . . . 9 . 5 . . . Combat Hostiles . | . . . . . . . . . . . . . . Follow-up Attacks 6 | . . . . . . . . . 3 3 . . . Damage Inflicted 26607 | . 24 272 . . 792 2090 652 941 924 3394 3347 8608 5563 Guns 9566 | . 24 194 . . 506 29 41 . . . 1057 6174 1541 Cannons 11668 | . . . . . 8 1939 255 . . 2640 1317 2416 3093 Explosions 2474 | . . 78 . . 272 118 159 . . . 946 . 901 Melee 2805 | . . . . . . . 197 941 924 743 . . . Ramming 94 | . . . . . 6 4 . . . 11 27 18 28 Kinetic 16651 | . . . . . . 1939 269 . . 2640 2374 6887 2542 Thermal 4736 | . . 78 . . 41 118 . . . . 249 1703 2547 Explosive 1011 | . . . . . . . . . . . 697 . 314 Electromagnetic 1310 | . 24 194 . . 745 29 186 . . . . . 132 Impact . | . . . . . . . . . . . . . . Slashing 2805 | . . . . . . . 197 941 924 743 . . . Piercing . | . . . . . . . . . . . . . . Highest Corruption 16 | . . . . . 3 3 16 16 . . 6 4 12 Average Corruption 8 | . . . . . 3 2 12 16 . . 2 2 5 Corruption Purged 10 | . . . . . . . . . . . 6 4 . Corruption Blocked . | . . . . . . . . . . . . . . Effects 307 | . . . . . 9 15 147 63 . . 23 21 29 Message Errors 81 | . . . . . 2 4 31 21 . . 3 7 13 Matter Fused 66 | . . . . . 2 4 29 14 . . 9 3 5 Heat Flow Errors 49 | . . . . . 2 . 26 10 . . 4 3 4 Energy Discharges 38 | . . . . . . 4 23 5 . . 3 2 1 Parts Rejected 5 | . . . . . . . 1 1 . . . 2 1 Parts Fused 4 | . . . . . 1 . . 2 . . . . 1 Data Loss (minor) 32 | . . . . . 1 2 18 6 . . 1 1 3 Data Loss (major) 15 | . . . . . 1 . 12 1 . . . 1 . Misfires 10 | . . . . . . . 6 . . . 3 1 . Alerts 7 | . . . . . . 1 1 3 . . . 1 1 Overload Shots . | . . . . . . . . . . . . . . Overflow Damage 749 | . . . . . 1 130 4 119 10 144 78 86 177 Projectiles 345 | . . . . . . 57 . . . 52 19 86 131 Explosions 183 | . . . . . 1 73 4 . . . 59 . 46 Melee 221 | . . . . . . . . 119 10 92 . . . Knockbacks 102 | . . . . . . 17 . . . 31 16 17 21 Impact 1 | . . . . . . . . . . . . . 1 Kinetic 95 | . . . . . . 16 . . . 30 16 17 16 Secondary 6 | . . . . . . 1 . . . 1 . . 4 Self-Inflicted Damage 362 | . . 26 . . 88 55 32 . . . 72 44 45 Shots 16 | . . 1 . . 3 1 2 . . . 4 3 2 Rammed 14 | . . . . . 1 1 . . . 1 4 4 3 Targets Rammed 14 | . . . . . 1 1 . . . 1 4 4 3 Kicked . | . . . . . . . . . . . . . . Crushed . | . . . . . . . . . . . . . . Highest Temperature 1040 | . 18 144 . . 219 88 484 257 280 76 205 291 1040 Average Temperature 105 | . 9 76 . . 38 21 121 100 64 18 39 107 201 Received Heat Transfer 3029 | . . 45 . . 144 303 550 . 288 603 363 549 184 Effects 47 | . . . . . . . 4 . 1 . . 1 41 Shutdowns 14 | . . . . . . . 4 . . . . . 10 Energy Bleed 6 | . . . . . . . . . 1 . . 1 4 Interference 3 | . . . . . . . . . . . . . 3 Matter Decay 4 | . . . . . . . . . . . . . 4 Short Circuit 3 | . . . . . . . . . . . . . 3 Damage (minor) 3 | . . . . . . . . . . . . . 3 Damage (major) 10 | . . . . . . . . . . . . . 10 Damage (core) 4 | . . . . . . . . . . . . . 4 Siege Activations . | . . . . . . . . . . . . . . Martial Activations . | . . . . . . . . . . . . . . Shielding Activations . | . . . . . . . . . . . . . . Robots Disrupted 1 | . . . . . . . . . . . . . 1 Combat Hostiles 1 | . . . . . . . . . . . . . 1 Robots Corrupted . | . . . . . . . . . . . . . . Combat Hostiles . | . . . . . . . . . . . . . . Parts Fried 8 | . . 1 . . 4 . . . . 3 . . . Impact Corruptions . | . . . . . . . . . . . . . . Robots Melted . | . . . . . . . . . . . . . . Combat Hostiles . | . . . . . . . . . . . . . . Parts Melted 5 | . . . . . 1 . . . . . . 1 3 Heat Transferred 4358 | . . 100 . . 100 50 . . . . 150 2600 1358 Parts Sabotaged . | . . . . . . . . . . . . . . Parts Stolen . | . . . . . . . . . . . . . . Parts Stripped . | . . . . . . . . . . . . . . Power Chain Reactions 6 | . . 2 . . 1 . . . . . . 1 2 Latent Energy Used 625 | . . . . . 200 . 425 . . . . . . LE Corruption 14 | . . . . . 3 . 11 . . . . . . Alert | -11 -10 -10 -10 -9 -8 -7 -7 -7 -6 -6 -5 -4 -3 ------- Run | Yrd Mat Min Exi Min Mat Fac Low Low Fac Ext Fac Fac Res Maximum Alert Level . | . . . . . . . . . . . . . . Low Security (%) 100 | 100 100 100 . 100 100 100 . . 100 100 100 100 100 Level 1 . | . . . . . . . . . . . . . . Level 2 . | . . . . . . . . . . . . . . Level 3 . | . . . . . . . . . . . . . . Level 4 . | . . . . . . . . . . . . . . Level 5 . | . . . . . . . . . . . . . . High Security . | . . . . . . . . . . . . . . Max Security . | . . . . . . . . . . . . . . Peak Influence 165 | . 8 75 . . 130 154 . . 50 115 165 93 88 Initial 13 | . . . . . . . . . . . . . 13 Average 17 | . 1 4 . . 20 19 . . 7 16 25 29 13 Influence Increases 4698 | . 15 100 . . 328 537 130 50 160 882 791 985 720 Destroy 0b10 Robot/C 2720 | . . 80 . . 120 340 60 40 80 580 400 580 440 Destroy 0b10 Robot/NC 300 | . 5 . . . 45 15 5 . . 35 25 120 50 Destroy Leader 692 | . 2 10 . . 72 104 20 10 30 116 102 146 80 Allied During Kill 15 | . . . . . . . . . . 15 . . . Trap Triggered on 0b10 20 | . . . . . 20 . . . . . . . . Successful Hack 149 | . 8 . . . 3 53 . . . 61 10 14 . Disable Machine 100 | . . . . . 12 4 . . . 12 32 24 16 Destroy Structure 492 | . . 10 . . 56 21 . . 5 18 192 56 134 Lose Combat Pursuer 210 | . . . . . . . 45 . 45 45 30 45 . Influence Decreases 4676 | . 15 100 . . 328 537 130 50 159 883 791 949 734 Entered New Map 24 | . . . . . . . . . . 1 . . 23 Time Decay 4217 | . 15 90 . . 328 537 125 50 159 758 759 829 567 Lost Part 317 | . . 10 . . . . 5 . . 23 15 120 144 Lost Ally 50 | . . . . . . . . . . 33 17 . . Purge Threat 68 | . . . . . . . . . . 68 . . . Squads Dispatched 46 | . . . . . . 15 . . 2 8 10 6 5 Investigation 16 | . . . . . . 5 . . 1 5 3 2 . Extermination 14 | . . . . . . 4 . . 1 . 3 3 3 Reinforcement 12 | . . . . . . 3 . . . 3 4 . 2 Assault 1 | . . . . . . . . . . . . 1 . Garrison 3 | . . . . . . 3 . . . . . . . Intercept . | . . . . . . . . . . . . . . Searches Triggered . | . . . . . . . . . . . . . . Construction Impeded 4 | . . . . . . 1 . . . 1 1 . 1 Haulers Reinforced 1 | . . . . . . 1 . . . . . . . Active Scanning Responses . | . . . . . . . . . . . . . . Cargo Convoy Interrupts . | . . . . . . . . . . . . . . Stealth | -11 -10 -10 -10 -9 -8 -7 -7 -7 -6 -6 -5 -4 -3 --------- Run | Yrd Mat Min Exi Min Mat Fac Low Low Fac Ext Fac Fac Res Distress Signals 11 | . . . . . 2 1 . . . 3 . 4 1 Communications Jammed 18 | . . . . . . . . . . . . 8 10 Distress Signals 16 | . . . . . . . . . . . . 8 8 Times Spotted 212 | . . 5 . . 14 20 6 2 7 38 24 65 31 Peak Tracking Total 7 | . . 2 . . 3 3 2 2 3 5 4 7 6 Tactical Retreats 15 | . . . . . . . 3 . 3 3 2 4 . Traps | -11 -10 -10 -10 -9 -8 -7 -7 -7 -6 -6 -5 -4 -3 ------- Run | Yrd Mat Min Exi Min Mat Fac Low Low Fac Ext Fac Fac Res Traps Triggered 10 | . . . . . . 1 . . . 2 2 3 2 Indirectly . | . . . . . . . . . . . . . . Trap Hack Attempts . | . . . . . . . . . . . . . . Triggered . | . . . . . . . . . . . . . . Disarmed . | . . . . . . . . . . . . . . Reprogrammed 6 | . . . . . 6 . . . . . . . . Reused 2 | . . . . . 2 . . . . . . . . Traps Extracted . | . . . . . . . . . . . . . . Installed . | . . . . . . . . . . . . . . Triggered 2 | . . . . . 2 . . . . . . . . Machines | -11 -10 -10 -10 -9 -8 -7 -7 -7 -6 -6 -5 -4 -3 ---------- Run | Yrd Mat Min Exi Min Mat Fac Low Low Fac Ext Fac Fac Res Machines Disabled 25 | . . . . . 3 1 . . . 3 8 6 4 Max in Single Turn 4 | . . . . . 3 1 . . . 1 4 2 1 Garrison Access 3 | . . . . . . . . . . . 1 1 1 Machines Repaired . | . . . . . . . . . . . . . . Machines Dismantled 1 | . . . . . . . . . . 1 . . . Machines Sabotaged . | . . . . . . . . . . . . . . Overloaded Fab Kills . | . . . . . . . . . . . . . . Hacking | -11 -10 -10 -10 -9 -8 -7 -7 -7 -6 -6 -5 -4 -3 --------- Run | Yrd Mat Min Exi Min Mat Fac Low Low Fac Ext Fac Fac Res Machines Accessed 42 | . 1 . 1 1 3 9 2 1 2 12 6 3 1 Terminals 30 | . 1 . . 1 2 8 1 1 2 12 1 1 . Fabricators 3 | . . . . . . . . . . . 2 1 . Repair Stations . | . . . . . . . . . . . . . . Recycling Units . | . . . . . . . . . . . . . . Scanalyzers 4 | . . . . . 1 . . . . . 2 1 . Garrison Access 3 | . . . . . . 1 . . . . 1 . 1 Total Hacks 109 | . 3 . 1 1 5 26 2 1 3 33 23 8 3 Successful 62 | . 2 . 1 1 4 10 2 1 2 15 19 4 1 Failed 47 | . 1 . . . 1 16 . . 1 18 4 4 2 Catastrophic 10 | . . . . . . 4 . . 1 3 1 1 . Database Lockouts . | . . . . . . . . . . . . . . Manual 1 | . . . 1 . . . . . . . . . . Terminals 75 | . 3 . . 1 4 24 1 1 3 33 2 3 . Fabricators 7 | . . . . . . . . . . . 4 3 . Repair Stations . | . . . . . . . . . . . . . . Recycling Units . | . . . . . . . . . . . . . . Scanalyzers 19 | . . . . . 1 . . . . . 16 2 . Garrison Access 6 | . . . . . . 2 . . . . 1 . 3 Terminal Hacks 38 | . 2 . 1 1 3 10 2 1 2 15 . 1 . Record 3 | . . . . . . . 1 1 1 . . . . Part Schematic 6 | . . . . . . 2 . . . 3 . 1 . Robot Schematic 1 | . . . . . . . . . . 1 . . . Robot Analysis 4 | . . . . . 1 2 . . . 1 . . . Prototype ID Bank 2 | . . . . . . 1 . . . 1 . . . Open Door 6 | . . . . . . . 1 . 1 4 . . . Open DSF 1 | . . . . . . 1 . . . . . . . Branch Access Points 2 | . 1 . . . 1 . . . . . . . . Unreport Threat 2 | . . . . . . . . . . 2 . . . Locate Traps 3 | . . . . . . 1 . . . 2 . . . Reprogram Traps 1 | . . . . . 1 . . . . . . . . Transport Status 1 | . . . . . . 1 . . . . . . . Hauler Manifests 1 | . 1 . . . . . . . . . . . . Registered Components 1 | . . . . . . 1 . . . . . . . Zone Layout 3 | . . . . 1 . 1 . . . 1 . . . Proto ID Catalog 1 | . . . 1 . . . . . . . . . . Fabricator Hacks 3 | . . . . . . . . . . . 2 1 . Load Schematic 2 | . . . . . . . . . . . 1 1 . Build 1 | . . . . . . . . . . . 1 . . Repair Station Hacks . | . . . . . . . . . . . . . . Recycling Unit Hacks . | . . . . . . . . . . . . . . Scanalyzer 19 | . . . . . 1 . . . . . 16 2 . Insert Component 1 | . . . . . 1 . . . . . . . . Retrieve Study 18 | . . . . . . . . . . . 16 2 . Garrison Access Hacks 2 | . . . . . . . . . . . 1 . 1 Seal Access 2 | . . . . . . . . . . . 1 . 1 Unauthorized Hacks . | . . . . . . . . . . . . . . Terminals . | . . . . . . . . . . . . . . Fabricators . | . . . . . . . . . . . . . . Repair Stations . | . . . . . . . . . . . . . . Recycling Units . | . . . . . . . . . . . . . . Scanalyzers . | . . . . . . . . . . . . . . Garrison Access . | . . . . . . . . . . . . . . Data Cores Recovered . | . . . . . . . . . . . . . . Used . | . . . . . . . . . . . . . . Hacking Detections 30 | . 1 . . . 2 8 1 . 2 9 3 3 1 Full Trace Events 16 | . . . . . . 5 . . 1 5 3 2 . Feedback Events 1 | . . . . . . . . . . . 1 . . Corruption 1 | . . . . . . . . . . . 1 . . Feedback Blocked . | . . . . . . . . . . . . . . Robot Schematics Acquired 1 | . . . . . . . . . . 1 . . . Robots Built . | . . . . . . . . . . . . . . Authchips . | . . . . . . . . . . . . . . Time . | . . . . . . . . . . . . . . Total Robot Build Rating . | . . . . . . . . . . . . . . Part Schematics Acquired 6 | . . . . . . 2 . . . 3 . 1 . Parts Built 2 | . . . . . . . . . . . 2 . . Authchips . | . . . . . . . . . . . . . . Time 84 | . . . . . . . . . . . 84 . . Total Part Build Rating 8 | . . . . . . . . . . . 8 . . Part Studies Acquired 18 | . . . . . . . . . . . 16 2 . Parts Repaired . | . . . . . . . . . . . . . . Time . | . . . . . . . . . . . . . . Parts Recycled . | . . . . . . . . . . . . . . Recycled Matter . | . . . . . . . . . . . . . . Retrieved Matter . | . . . . . . . . . . . . . . Retrieved Components . | . . . . . . . . . . . . . . Parts Scanalyzed . | . . . . . . . . . . . . . . Part Schematics Acquired . | . . . . . . . . . . . . . . Parts Damaged . | . . . . . . . . . . . . . . Bothacking | -11 -10 -10 -10 -9 -8 -7 -7 -7 -6 -6 -5 -4 -3 ------------ Run | Yrd Mat Min Exi Min Mat Fac Low Low Fac Ext Fac Fac Res Used RIF Installer . | . . . . . . . . . . . . . . Robots Hacked . | . . . . . . . . . . . . . . Non-combat . | . . . . . . . . . . . . . . Combat . | . . . . . . . . . . . . . . Robot Hacks Applied . | . . . . . . . . . . . . . . Relay Couplers Released 5 | . . . . . . . . . . . . 5 . Machine Destruction 1 | . . . . . . . . . . . . 1 . Programmers 4 | . . . . . . . . . . . . 4 . Fabnet Peak Effective % . | . . . . . . . . . . . . . . Robots Rewired . | . . . . . . . . . . . . . . Allies Hacked . | . . . . . . . . . . . . . . Hacks Repelled . | . . . . . . . . . . . . . . Allies | -11 -10 -10 -10 -9 -8 -7 -7 -7 -6 -6 -5 -4 -3 -------- Run | Yrd Mat Min Exi Min Mat Fac Low Low Fac Ext Fac Fac Res Total Allies 9 | . . 2 . . . . . . . 7 . . . Largest Group 3 | . . 2 2 . . . . . . 3 1 . . Highest-Rated Group 212 | . . 45 45 . . . . . . 212 26 . . Highest-Rated Ally 159 | . . 31 31 . . . . . . 159 26 . . Total Orders . | . . . . . . . . . . . . . . Ally Attacks 101 | . . . . . . . . . . 101 . . . Total Damage 1957 | . . . . . . . . . . 1957 . . . Kills 11 | . . . . . . . . . . 11 . . . Allies Corrupted . | . . . . . . . . . . . . . . Allies Melted . | . . . . . . . . . . . . . . Intel | -11 -10 -10 -10 -9 -8 -7 -7 -7 -6 -6 -5 -4 -3 ------- Run | Yrd Mat Min Exi Min Mat Fac Low Low Fac Ext Fac Fac Res Active Infowar (turns) 14239 | . . . . . 1035 1670 1791 1534 695 2035 2067 1796 1616 Sensors 4471 | . . . . . 1035 1670 1766 . . . . . . Machine Analysis 8846 | . . . . . . . 25 1534 695 2035 2067 1796 694 Jamming 2115 | . . . . . . . . . . . . 499 1616 ECM 97 | . . . . . . 97 . . . . . . . Robot Analysis Total 4 | . . . . . 1 2 . . . 1 . . . Derelict Logs Recovered 5 | . . 2 . 1 . . 1 1 . . . . . Drone Launches . | . . . . . . . . . . . . . . Drone Recoveries . | . . . . . . . . . . . . . . Exploration | -11 -10 -10 -10 -9 -8 -7 -7 -7 -6 -6 -5 -4 -3 ------------- Run | Yrd Mat Min Exi Min Mat Fac Low Low Fac Ext Fac Fac Res Turns Passed 18795 | 49 164 796 516 624 1057 1670 4009 1534 695 2035 2067 1796 1783 Spaces Moved 6796 | 41 124 571 421 485 386 648 653 457 232 694 920 702 462 Core 96 | 23 . . . . . . 65 . . . . . 8 Treads 4735 | . . . . . 259 648 369 457 232 694 920 702 454 Legs 1965 | 18 124 571 421 485 127 . 219 . . . . . . Wheels . | . . . . . . . . . . . . . . Hover . | . . . . . . . . . . . . . . Flight . | . . . . . . . . . . . . . . Fastest Speed 50 | 50 120 120 120 120 120 160 240 240 160 240 162 151 151 Average Speed 238 | 80 120 120 120 120 229 229 591 325 254 241 183 167 298 Slowest Speed 1950 | 120 120 120 120 120 260 240 1950 400 320 242 248 206 1650 Overloaded Moves . | . . . . . . . . . . . . . . Propulsion Burnouts . | . . . . . . . . . . . . . . Robots Hopped . | . . . . . . . . . . . . . . Potential Cave-ins 9 | . . . . . . . 3 . . . . . 6 Cave-ins Triggered 1 | . . . . . . . . . . . . 1 . Exploration Rate (%) 45 | 4 24 97 89 93 38 18 80 44 7 81 26 25 15 Regions Visited 13 Branch Regions 6 Pre-discovered Areas 3 | . . 1 . 2 . . . . . . . . . Known Exits Taken 13 | 1 1 1 1 1 1 1 1 1 1 1 1 1 . Unknown Exits Taken . | . . . . . . . . . . . . . . Scrap Searched 6 | . . . . 3 . . 2 1 . . . . . Spaces Dug 39 | . . . . . . . 5 . 5 1 . 7 21 Terrain Destroyed 356 | . . 10 . . 64 25 7 . 5 17 123 35 70 Melee 11 | . . . . . . . 5 . 5 1 . . . Projectile 103 | . . . . . . 3 2 . . 16 14 35 33 AOE 242 | . . 10 . . 64 22 . . . . 109 . 37 Terrain Rammed . | . . . . . . . . . . . . . . Walls Destroyed . | . . . . . . . . . . . . . . Machines Disabled . | . . . . . . . . . . . . . . Actions | -11 -10 -10 -10 -9 -8 -7 -7 -7 -6 -6 -5 -4 -3 --------- Run | Yrd Mat Min Exi Min Mat Fac Low Low Fac Ext Fac Fac Res Total 8523 | 57 137 663 432 528 528 757 770 484 293 911 1203 1039 721 Wait 781 | . 4 79 9 37 55 13 57 2 11 75 146 152 141 Move 6783 | 40 123 570 420 484 385 647 652 456 231 693 919 701 462 Hop . | . . . . . . . . . . . . . . Pick Up 119 | 8 8 1 2 2 26 6 8 6 3 13 16 18 2 Fast Attach 64 | 1 . . . . . 6 1 4 10 6 14 16 6 Attach 60 | 6 1 . 1 . 7 . 18 . . 3 4 12 8 Detach 13 | . . . . . 3 . 5 . . . 2 . 3 Swap 41 | . . . . 2 5 4 2 . 1 8 12 5 2 Drop 100 | 2 . . . 3 12 8 . 3 8 20 28 10 6 Fire 466 | . 1 13 . . 34 72 16 . . 68 56 121 85 Melee 65 | . . . . . . . 11 13 29 12 . . . Ram . | . . . . . . . . . . . . . . Kick . | . . . . . . . . . . . . . . Crush 14 | . . . . . 1 1 . . . 1 4 4 3 Escape Stasis 9 | . . . . . . . . . . 4 2 . 3 Rewire . | . . . . . . . . . . . . . . Trap . | . . . . . . . . . . . . . . Miscellaneous 8 | . . . . . . . . . . 8 . . . Route ------- -11/Scrapyard -10/Materials -10/Mines (discovered 3 exits: *Mat x2 / *Exi) -10/Exiles -9/Mines (discovered 2 exits: *Mat x2) -8/Materials -7/Factory (discovered 2 exits: *Low x2) -7/Lower Caves -7/Lower Caves -6/Factory -6/Extension (discovered 2 exits: *Fac / *Cet) -5/Factory (discovered 4 exits: *Fac x2 / *Upp x2) -4/Factory -3/Research History --------- Turn | Location | Event 20 | -11/Scrapyard | Identified exit to Materials 20 | -11/Scrapyard | Discovered exit to Materials (range 16) 50 | -11/Scrapyard | Entered Materials 50 | -10/Materials | Evolved 1 slot: Propulsion x1 113 | -10/Materials | Identified exit to Mines 214 | -10/Materials | Entered Mines 220 | -10/Mines | Deemed a non-threat by the Exiles lab entrance 222 | -10/Mines | Identified exit to Exiles 222 | -10/Mines | Discovered exit to Exiles (range 5) 306 | -10/Mines | Build established: Hacker-Mutant 358 | -10/Mines | Learned Materials stockpile data 482 | -10/Mines | Identified exit to Materials 482 | -10/Mines | Discovered exit to Materials (range 16) 489 | -10/Mines | Discovered exit to Materials (range 15) 606 | -10/Mines | Found a hidden stash of uninstalled traps 618 | -10/Mines | Learned location of Storage (-7) 709 | -10/Mines | Received a Rocket Launcher from a helpful Derelict 850 | -10/Mines | A weapon hastily lodged in a ceiling crevice suddenly fell to the ground 1010 | -10/Mines | Entered Exiles 1010 | -10/Exiles | Accompanied by 2 allies 1040 | -10/Exiles | Led the pair of lost Derelicts to a safe place 1042 | -10/Exiles | Met 8R-AWN 1085 | -10/Exiles | Met EX-HEX 1120 | -10/Exiles | Met EX-BIN 1137 | -10/Exiles | Aligned with FarCom system 1138 | -10/Exiles | Given EX-Vault access code 1167 | -10/Exiles | Opened EX-Vault 1174 | -10/Exiles | Found Latent Energy Streamer 1206 | -10/Exiles | Warned to stay clear of 0b10 Research branches 1243 | -10/Exiles | Met EX-DEC 1286 | -10/Exiles | Visited The Gauntlet 1512 | -10/Exiles | Identified exit to Mines 1512 | -10/Exiles | Discovered exit to Mines (range 14) 1526 | -10/Exiles | Left Exiles lab with Latent Energy Streamer 1526 | -10/Exiles | Entered Mines 1565 | -9/Mines | Assembled infested the area 1570 | -9/Mines | Assisted by a Guerilla fighting off Assembled 1592 | -9/Mines | Met a Derelict bent on vengeance 1680 | -9/Mines | Identified exit to Materials 1680 | -9/Mines | Discovered exit to Materials (range 8) 1969 | -9/Mines | Learned location of Zion (-6) 1978 | -9/Mines | Found a damaged Exp. Sensor Array with a note attached 1981 | -9/Mines | Found Prototype Device 2030 | -9/Mines | Discovered exit to Materials (range 13) 2150 | -9/Mines | Entered Materials 2150 | -8/Materials | Evolved 4 slots: Power x1, Utility x3 2171 | -8/Materials | Identified Exp. Sensor Array 2467 | -8/Materials | Build established: Hacker-Skirmisher 3086 | -8/Materials | Identified exit to Factory 3086 | -8/Materials | Discovered exit to Factory (range 16) 3207 | -8/Materials | Entered Factory 3207 | -7/Factory | Evolved 2 slots: Propulsion x1, Utility x1 3483 | -7/Factory | Identified exit to DSF 3485 | -7/Factory | Identified exit to Lower Caves 3485 | -7/Factory | Discovered exit to Lower Caves (range 6) 3996 | -7/Factory | Garrison activated, responded to threat 4694 | -7/Factory | Discovered exit to Lower Caves (range 8) 4877 | -7/Factory | Entered Lower Caves 4930 | -7/Lower Caves | Spotted B-75 Beast 5052 | -7/Lower Caves | Lost 5 parts (1p3n1w) 5191 | -7/Lower Caves | Build established: Hacker-Mutant 5633 | -7/Lower Caves | System corruption reached 10% 8792 | -7/Lower Caves | Identified exit to Lower Caves 8792 | -7/Lower Caves | Discovered exit to Lower Caves (range 6) 8886 | -7/Lower Caves | Entered another Lower Caves area 8990 | -7/Lower Caves | Learned Factory emergency access door positions 9764 | -7/Lower Caves | Identified exit to Factory 9764 | -7/Lower Caves | Discovered exit to Factory (range 5) 10420 | -7/Lower Caves | Entered Factory 10420 | -6/Factory | Evolved 2 slots: Utility x2 11039 | -6/Factory | Identified exit to Extension 11039 | -6/Factory | Discovered exit to Extension (range 6) 11115 | -6/Factory | Entered Extension 11275 | -6/Extension | Rescued a captive Derelict 11430 | -6/Extension | Rescued A7 11612 | -6/Extension | Spotted B-75 Beast 11624 | -6/Extension | Rescued a captive Derelict 11627 | -6/Extension | Rescued a captive Derelict 11637 | -6/Extension | Spotted B-75 Beast 11650 | -6/Extension | Destroyed B-75 Beast 11667 | -6/Extension | Allies destroyed B-75 Beast 11889 | -6/Extension | Extracted ID and sensor layout for unrecognized location from A7's data core 12348 | -6/Extension | Rescued a captive Derelict 12350 | -6/Extension | Rescued a captive Derelict 12400 | -6/Extension | Rescued a captive Derelict 12589 | -6/Extension | Build established: Scavenger-Mutant 12639 | -6/Extension | Identified exit to Factory 12639 | -6/Extension | Discovered exit to Factory (range 10) 12641 | -6/Extension | Identified exit to Cetus 12641 | -6/Extension | Discovered exit to Cetus (range 6) 13150 | -6/Extension | Entered Factory 13150 | -5/Factory | Accompanied by 1 ally 13150 | -5/Factory | Evolved 2 slots: Propulsion x1, Utility x1 13151 | -5/Factory | Identified exit to Upper Caves 13175 | -5/Factory | Found Prototype Launcher 13175 | -5/Factory | Identified Rocket Array 13965 | -5/Factory | Build established: Hacker-Mutant 14258 | -5/Factory | Discovered exit to Upper Caves (range 13) 14415 | -5/Factory | Build established: Scientist-Mutant 14602 | -5/Factory | Fabricated System Restoration Module (x2) 14636 | -5/Factory | Identified exit to Factory 14636 | -5/Factory | Discovered exit to Factory (range 13) 14978 | -5/Factory | Discovered exit to Factory (range 5) 15217 | -5/Factory | Entered another Factory area 15217 | -4/Factory | Evolved 2 slots: Propulsion x1, Weapon x1 15532 | -4/Factory | Spotted B-86 Titan 15568 | -4/Factory | Destroyed B-86 Titan 15608 | -4/Factory | Found Hvy. Reflective Plating 15726 | -4/Factory | Lost 3 parts (1p1n1u) 16164 | -4/Factory | Destroyed 9 combat bots 16304 | -4/Factory | Crushed by falling debris 16338 | -4/Factory | Lost 3 parts (2n1u) 16624 | -4/Factory | Build established: Hacker-Skirmisher 16773 | -4/Factory | Found Prototype Processor 16773 | -4/Factory | Identified Exp. Signal Interpreter 16907 | -4/Factory | Identified exit to Research 16907 | -4/Factory | Discovered exit to Research (range 16) 17013 | -4/Factory | Entered Research 17013 | -3/Research | Evolved 2 slots: Power x1, Utility x1 18085 | -3/Research | Core integrity fell below 50% 18106 | -3/Research | Lost 3 parts (1p2n) 18378 | -3/Research | Build established: Hacker-Mutant 18629 | -3/Research | System corruption reached 10% 18698 | -3/Research | Lost 7 parts (2p1n3u1w) 18759 | -3/Research | Core integrity fell below 20% 18796 | -3/Research | Destroyed by S-43 Plague with Heavy Machine Gun Last Messages --------------- 18787_ Acquired 7 matter. 18787_ Acquired 9 matter. 18787_ Acquired 30 matter. 18787_ Acquired 5 matter. 18787_ Acquired 1 matter. 18787_ Slug penetrates Wall. 18788_ Acquired 7 matter. 18789_ S-43 Plague destroyed. 18789_ U-05 Engineer builds a Wall. 18790_ Acquired 7 matter. 18790_ U-05 Engineer destroyed. 18791_ Wall collapses. 18792_ Acquired 7 matter. 18792_ U-05 Engineer builds a Wall. 18792_ Lgt. Antimatter Cannon destroyed. 18792_ Lrn. Tractor Beam destroyed. 18793_ Slug penetrates Wall. 18793_ Penetrated by Slug. 18793_ Slug penetrates Wall. 18794_ Adv. Transmission Jammer destroyed. Map ----- +----------------------------------------------------+ | ?????# ## ##+####+###+## #??????# | | ?????# """" ## ## ![ [[ #??????# | | ?????# """" ## ## ##+### #??????# | | ?????# """" ########+## # %# ######## | | ?????# """" + # !+! | | ?????# ##### # |## | | ?????# #???# # ##/######### | | ##########+######## ! # # ### | | # *% # #?? | | # # = #?? | | # # #?? | | # # #?? | | ########## ###########+##################?? | | ??????????# #??????# #??????????? | | ???????????# ######## [ #??????????? | | ?????????????# # #??????????? | | ?????????????# # #??????????? | | ?????????????# # ! #??????????? | | ?????????????# ##############??????????? | | ????????????######### # #??????????????? | | ????????????? = # # #??????????????? | | ????????????? # # #??????????????? | | ???????????# """" # [# ##?????????????? | | ???????????# """" # u #[s ##?????????????? | | ???????????# """" # !%#[s ##?????????????? | | ???????????# """" + *[=@h ##?????????????? | | ???????????# " # ==#% % ##?????????????? | | ???????????# # u# ##?????????????? | | ???????????# ! # # #########?????????????? | | ???????????########## ????????????? | | ????????????????????# ?????????????? | | ????????????????????# ?????????????? | | ????????????????????# ??????????????? | | ????????????????????####+######+###??????????????? | | ??????????????????????? ???????????????????????? | | ??????????????????????? ???????????????????????? | | ??????????????????????? ???????????????????????? | | ??????????????????????? ???????????????????????? | | ???????????????????????" ???????????????????????? | | ???????????????????????" ???????????????????????? | | ???????????????????????? ???????????????????????? | | ???????????????????????? ???????????????????????? | | ???????????????????????? ???????????????????????? | | ?????????????????????????????????????????????????? | | ?????????????????????????????????????????????????? | | ?????????????????????????????????????????????????? | | ?????????????????????????????????????????????????? | | ?????????????????????????????????????????????????? | | ?????????????????????????????????????????????????? | | ?????????????????????????????????????????????????? | +----------------------------------------------------+ Best States ------------- Heat Dissipation 100 Energy Generation 72 Energy Capacity 745 Matter Stores 300 Matter Capacity 300 Sight Range 16 Robot Scan Range 20 Terrain Scan Density 10 ECM Strength 2 Jamming Range 16 Power Amplification 40 Additional Mass Support 12 Armor Coverage 825 Resistance: KI 35 Resistance: TH 60 Resistance: EX 35 Resistance: EM 35 Resistance: I 35 Resistance: S 35 Resistance: P 35 Point Defense Rating 240 Phase Shifting 5 Evasion (%) 55 Targeting Accuracy 5 Launcher Accuracy 30 Recoil Reduction 6 Energy Filtering 50 Particle Charging 20 Kinecelleration 30 Offensive Hacking 20 Defensive Hacking 10 Item Schematics ----------------- Tesla Rifle | -7/Factory | Hacked System Restoration Module | -7/Factory | Hacked Hyp. Gauss Cannon | -6/Extension | Hacked Adv. VSS Leg | -6/Extension | Hacked Centrium Wheel | -6/Extension | Hacked Hvy. Siege Treads | -4/Factory | Hacked Robot Schematics ------------------ G-47 Trooper | -6/Extension | Hacked Fabricated ------------ System Restoration Module | x2 | -5/Factory Repaired ---------- Nothing Studied --------- Med. Treads | -5/Factory | Hacked Arm. Treads | -5/Factory | Hacked Gauss Cannon | -5/Factory | Hacked Adv. Assault Cannon | -5/Factory | Hacked Arm. Medium Treads | -5/Factory | Hacked Imp. Medium Treads | -5/Factory | Hacked Imp. Proton Missile Launcher | -5/Factory | Hacked Lrn. Proton Cannon | -5/Factory | Hacked Greatsword | -5/Factory | Hacked Disruptor Cannon | -5/Factory | Hacked Ion Cannon | -5/Factory | Hacked KE Penetrator | -5/Factory | Hacked Neutrino Core | -5/Factory | Hacked Plasma Cutter | -5/Factory | Hacked Remote Datajack | -5/Factory | Hacked Hpw. Shock Rifle | -5/Factory | Hacked Imp. Remote Datajack | -4/Factory | Hacked Hvy. Shock Bomb Launcher | -4/Factory | Hacked Alien Tech Used ----------------- None Achievements -------------- None Challenges ------------ None Game ------ Seed MediumBoreTube Manual? 0 Play Time 01:31:01 Cumulative 107.2 hours Start 2025.11.18 @ 09:33:54 End 2025.11.18 @ 11:03:53 Sessions 1 Manual Loads 0 Difficulty Explorer Special Mode None Game No. 121 Rogue 0 Adventurer 0 Explorer 121 Win Type - Total 0 Types 0/0/0/0/0/0/0/0/0/0 Lore% 62 Gallery% 61 Achievement% 47 Wizard Run 0 Options --------- Layout 1 ASCII 0 Keyboard 0 Movement Mouse Keybinds 0 Fullscreen 1 Font 24/Smallcaps Map View 50x35 Zoom Use 0% Tactical HUD 1 Map Filters NONE Filters NONE Steam 1 RUN: a2447233-8f8d-4962-9001-a7cec6cbea08